[Event "Championnat d'Europe Rapide"]
[Date "2024.12.08"]
[White "Tweedie, Steven"]
[Black "Pancevski, Filip"]
[WhiteElo "2172"]
[BlackElo "2420"]
[Round "7.43"]
[Result "0-1"]
[TimeControl "900+10"]

1. e4 {[%emt 00:00:02] [%clk 00:15:17]} d6 {[%emt 00:00:03] [%clk 00:15:19]} 2.
Nc3 {[%emt 00:00:01] [%clk 00:15:25]} Nf6 {[%emt 00:00:06] [%clk 00:15:22]} 3.
g3 {[%emt 00:00:03] [%clk 00:15:33]} g6 {[%emt 00:00:14]} 4. Bg2 {[%emt
00:00:01] [%clk 00:15:41]} Bg7 {[%emt 00:00:01] [%clk 00:15:28]} 5. d3 {[%emt
00:00:04] [%clk 00:15:47]} O-O {[%emt 00:00:02] [%clk 00:15:35]} 6. Nge2 {[%emt
00:00:14] [%clk 00:15:43]} c5 {[%emt 00:00:13] [%clk 00:15:33]} 7. O-O {[%emt
00:00:04] [%clk 00:15:49]} Nc6 {[%emt 00:00:01] [%clk 00:15:42]} 8. h3 {[%emt
00:00:12] [%clk 00:15:47]} Rb8 {[%emt 00:00:04] [%clk 00:15:49]} 9. f4 {[%emt
00:00:04] [%clk 00:15:52]} Ne8 {[%emt 00:00:08] [%clk 00:15:50]} 10. f5 {[%emt
00:00:57] [%clk 00:15:05]} b5 {[%emt 00:00:05] [%clk 00:15:56]} 11. g4 {[%emt
00:02:12] [%clk 00:13:04]} Nc7 {[%emt 00:00:35] [%clk 00:15:30]} 12. Ng3 {[%emt
00:01:42] [%clk 00:11:32]} b4 {[%emt 00:00:15] [%clk 00:15:25]} 13. Nce2 {[%emt
00:00:02] [%clk 00:11:40]} a5 {[%emt 00:00:26] [%clk 00:15:10]} 14. Rb1 {[%emt
00:03:03] [%clk 00:08:46]} Nb5 {[%emt 00:04:28] [%clk 00:10:52]} 15. Be3 {[%emt
00:00:23] [%clk 00:08:32]} a4 {[%emt 00:00:22] [%clk 00:10:41]} 16. Qd2 {[%emt
00:01:29] [%clk 00:07:13]} a3 {[%emt 00:00:21] [%clk 00:10:30]} 17. b3 {[%emt
00:00:04] [%clk 00:07:19]} Ncd4 {[%emt 00:02:23] [%clk 00:08:18]} 18. Rbc1
{[%emt 00:00:34] [%clk 00:06:54]} Nc3 {[%emt 00:04:10] [%clk 00:04:19]} 19. Nxc3
{[%emt 00:01:09] [%clk 00:05:55]} bxc3 {[%clk 00:04:28]} 20. Qf2 {[%emt
00:00:01] [%clk 00:06:04]} Nc6 {[%emt 00:00:09] [%clk 00:04:29]} 21. g5 {[%emt
00:00:30] [%clk 00:05:43]} Be5 {[%emt 00:00:10] [%clk 00:04:29]} 22. Bf4 {[%emt
00:01:59] [%clk 00:03:54]} Bh8 {[%emt 00:00:03] [%clk 00:04:37]} 23. h4 {[%emt
00:00:07] [%clk 00:03:57]} Nb4 {[%emt 00:00:02] [%clk 00:04:45]} 24. h5 {[%emt
00:00:14] [%clk 00:03:53]} Nxa2 {[%emt 00:00:10] [%clk 00:04:44]} 25. Ra1 {[%emt
00:00:01] [%clk 00:04:02]} Nb4 {[%clk 00:04:53]} 26. Be3 {[%emt 00:00:34] [%clk
00:03:38]} a2 {[%emt 00:00:25] [%clk 00:04:38]} 27. Bf3 {[%emt 00:01:27] [%clk
00:02:21]} Be5 {[%emt 00:00:16] [%clk 00:04:33]} 28. Kg2 {[%emt 00:00:05] [%clk
00:02:25]} Qc7 {[%emt 00:02:50] [%clk 00:01:53]} 29. Bd1 {[%emt 00:00:25] [%clk
00:02:11]} d5 {[%emt 00:00:16] [%clk 00:01:46]} 30. fxg6 {[%emt 00:00:22] [%clk
00:01:59]} hxg6 {[%emt 00:00:38] [%clk 00:01:19]} 31. hxg6 {[%emt 00:00:01]
[%clk 00:02:07]} Be6 {[%emt 00:00:04] [%clk 00:01:25]} 32. g7 {[%emt 00:00:51]
[%clk 00:01:27]} Kxg7 {[%emt 00:00:01] [%clk 00:01:34]} 33. Nf5+ {[%clk
00:01:36]} Bxf5 {[%emt 00:00:12] [%clk 00:01:31]} 34. Qxf5 {[%emt 00:00:12]
[%clk 00:01:34]} e6 {[%emt 00:00:09] [%clk 00:01:32]} 35. Qf2 {[%emt 00:00:05]
[%clk 00:01:39]} Rh8 {[%emt 00:00:21] [%clk 00:01:22]} 36. Bf4 {[%emt 00:00:15]
[%clk 00:01:33]} Bxf4 {[%emt 00:00:02] [%clk 00:01:30]} 37. Qxf4 {[%clk
00:01:42]} Qxf4 {[%emt 00:00:03] [%clk 00:01:37]} 38. Rxf4 {[%clk 00:01:52]} d4
{[%emt 00:00:10] [%clk 00:01:38]} 39. Rf2 {[%emt 00:00:20] [%clk 00:01:41]} Rh4
{[%emt 00:00:10] [%clk 00:01:39]} 40. Kg3 {[%emt 00:00:27] [%clk 00:01:24]} Rbh8
{[%emt 00:00:02] [%clk 00:01:46]} 41. Bf3 {[%emt 00:00:02] [%clk 00:01:32]} Rh3+
{[%emt 00:00:35] [%clk 00:01:21]} 42. Kf4 {[%emt 00:00:01] [%clk 00:01:41]}
R8h4+ {[%emt 00:00:16] [%clk 00:01:15]} 43. Ke5 {[%emt 00:00:03] [%clk
00:01:48]} Rh2 {[%emt 00:00:20] [%clk 00:01:06]} 44. Rff1 {[%emt 00:01:18] [%clk
00:00:40]} Rxc2 {[%emt 00:00:14] [%clk 00:01:01]} 45. Kd6 {[%emt 00:00:01] [%clk
00:00:49]} Nxd3 {[%emt 00:00:06] [%clk 00:01:06]} 46. Rfd1 {[%emt 00:00:13]
[%clk 00:00:46]} Nf2 {[%emt 00:00:32] [%clk 00:00:44]} 47. Re1 {[%emt 00:00:28]
[%clk 00:00:27]} Rf4 {[%emt 00:00:03] [%clk 00:00:50]} 48. Bd1 {[%emt 00:00:27]
[%clk 00:00:11]} Rd2 {[%emt 00:00:11] [%clk 00:00:49]} 49. Bh5 {[%emt 00:00:11]
[%clk 00:00:11]} Nxe4+ {[%emt 00:00:07] [%clk 00:00:51]} 0-1

[Site "Europe Echecs"]

[Event "Championnat d'Europe Rapide"]
[Date "2024.12.08"]
[White "Nakonechnyi, Oleksii"]
[Black "Narva, Mai"]
[WhiteElo "2052"]
[BlackElo "2413"]
[Round "7.44"]
[Result "0-1"]
[TimeControl "900+10"]

1. d4 {[%clk 00:15:18]} Nf6 {[%emt 00:01:45] [%clk 00:13:36]} 2. Nf3 {[%emt
00:00:02] [%clk 00:15:25]} g6 {[%emt 00:00:11] [%clk 00:13:35]} 3. g3 {[%emt
00:00:02] [%clk 00:15:32]} Bg7 {[%emt 00:00:04] [%clk 00:13:43]} 4. Bg2 {[%emt
00:00:03] [%clk 00:15:39]} O-O {[%emt 00:00:05] [%clk 00:13:48]} 5. O-O {[%emt
00:00:03] [%clk 00:15:45]} d6 {[%emt 00:00:06] [%clk 00:13:53]} 6. c4 {[%emt
00:00:17] [%clk 00:15:38]} c6 {[%emt 00:00:05] [%clk 00:13:58]} 7. Nc3 {[%emt
00:00:18] [%clk 00:15:30]} Qb6 {[%emt 00:00:07] [%clk 00:14:01]} 8. b3 {[%emt
00:00:21] [%clk 00:15:19]} e5 {[%emt 00:00:33] [%clk 00:13:37]} 9. c5 {[%emt
00:01:41] [%clk 00:13:50]} dxc5 {[%emt 00:03:53] [%clk 00:09:53]} 10. dxe5
{[%emt 00:00:52] [%clk 00:13:08]} Ng4 {[%emt 00:00:52] [%clk 00:09:10]} 11. Bf4
{[%emt 00:00:17] [%clk 00:13:02]} Nd7 {[%emt 00:01:19] [%clk 00:08:01]} 12. Qd6
{[%emt 00:01:27] [%clk 00:11:45]} Re8 {[%emt 00:00:31] [%clk 00:07:39]} 13. Ne4
{[%emt 00:03:17] [%clk 00:08:38]} Re6 {[%emt 00:00:49] [%clk 00:07:00]} 14. Qd2
{[%emt 00:00:22] [%clk 00:08:27]} Ndxe5 {[%emt 00:00:38] [%clk 00:06:32]} 15.
Rad1 {[%emt 00:00:06] [%clk 00:08:30]} Re8 {[%emt 00:01:51] [%clk 00:04:51]} 16.
h3 {[%emt 00:01:29] [%clk 00:07:12]} Nxf3+ {[%emt 00:00:28] [%clk 00:04:32]} 17.
exf3 {[%emt 00:00:04] [%clk 00:07:18]} Nf6 {[%emt 00:00:58] [%clk 00:03:44]} 18.
Nd6 {[%emt 00:01:55] [%clk 00:05:34]} Rd8 {[%emt 00:01:53] [%clk 00:02:01]} 19.
Bg5 {[%emt 00:00:43] [%clk 00:05:01]} Be6 {[%emt 00:00:16] [%clk 00:01:54]} 20.
Qf4 {[%emt 00:01:52] [%clk 00:03:19]} Nd5 {[%emt 00:00:24] [%clk 00:01:41]} 21.
Bxd8 {[%emt 00:00:02] [%clk 00:03:27]} Rxd8 {[%emt 00:00:21] [%clk 00:01:30]}
22. Nc4 {[%emt 00:00:19] [%clk 00:03:18]} Nxf4 {[%emt 00:00:03] [%clk 00:01:37]}
23. Nxb6 {[%emt 00:00:01] [%clk 00:03:27]} Ne2+ {[%emt 00:00:03] [%clk
00:01:44]} 24. Kh2 {[%emt 00:00:07] [%clk 00:03:29]} Rxd1 {[%emt 00:00:04] [%clk
00:01:51]} 25. Rxd1 {[%emt 00:00:05] [%clk 00:03:35]} axb6 {[%emt 00:00:02]
[%clk 00:01:58]} 26. Rd8+ {[%clk 00:03:44]} Bf8 {[%emt 00:00:01] [%clk
00:02:07]} 27. Rb8 {[%emt 00:00:01] [%clk 00:03:53]} Nc3 {[%emt 00:00:40] [%clk
00:01:37]} 28. Rxb7 {[%emt 00:00:06] [%clk 00:03:57]} b5 {[%emt 00:00:09] [%clk
00:01:38]} 29. f4 {[%emt 00:00:17] [%clk 00:03:50]} Nxa2 {[%emt 00:00:15] [%clk
00:01:33]} 30. Bxc6 {[%emt 00:00:02] [%clk 00:03:58]} b4 {[%emt 00:00:13] [%clk
00:01:30]} 31. Bf3 {[%emt 00:00:31] [%clk 00:03:36]} Bxb3 {[%emt 00:00:25] [%clk
00:01:16]} 32. Rc7 {[%emt 00:00:10] [%clk 00:03:36]} Be6 {[%emt 00:00:17] [%clk
00:01:09]} 33. Be4 {[%emt 00:00:29] [%clk 00:03:17]} c4 {[%emt 00:00:20] [%clk
00:00:59]} 34. Kg2 {[%emt 00:00:15] [%clk 00:03:12]} b3 {[%emt 00:00:11] [%clk
00:00:59]} 35. g4 {[%emt 00:00:08] [%clk 00:03:13]} Bd6 {[%emt 00:00:17] [%clk
00:00:51]} 36. Rc6 {[%emt 00:00:07] [%clk 00:03:17]} Bxf4 {[%emt 00:00:06] [%clk
00:00:55]} 37. Kf3 {[%clk 00:03:26]} Bc1 {[%emt 00:00:21] [%clk 00:00:43]} 38.
Rb6 {[%emt 00:00:19] [%clk 00:03:18]} Nc3 {[%emt 00:00:05] [%clk 00:00:47]} 39.
Rb8+ {[%emt 00:00:14] [%clk 00:03:15]} Kg7 {[%emt 00:00:01] [%clk 00:00:55]} 40.
Rb7 {[%emt 00:00:01] [%clk 00:03:24]} Nxe4 {[%emt 00:00:23] [%clk 00:00:43]} 41.
Kxe4 {[%emt 00:00:01] [%clk 00:03:33]} b2 {[%emt 00:00:11] [%clk 00:00:42]} 42.
f4 {[%emt 00:00:08] [%clk 00:03:35]} c3 {[%emt 00:00:10] [%clk 00:00:42]} 43.
Kd3 {[%emt 00:00:06] [%clk 00:03:40]} Ba2 {[%emt 00:00:04] [%clk 00:00:48]} 0-1

[Site "Europe Echecs"]

[Event "Championnat d'Europe Rapide"]
[Date "2024.12.08"]
[White "Yuste Valenzuela, Alejandro"]
[Black "Stanojoski, Zvonko"]
[WhiteElo "2150"]
[BlackElo "2401"]
[Round "7.45"]
[Result "0-1"]
[TimeControl "900+10"]

1. e4 {[%emt 00:00:03] [%clk 00:15:17]} c5 {[%emt 00:00:03] [%clk 00:15:17]} 2.
Nf3 {[%emt 00:00:01] [%clk 00:15:24]} d6 {[%emt 00:00:04] [%clk 00:15:25]} 3. d4
{[%emt 00:00:08] [%clk 00:15:26]} cxd4 {[%emt 00:00:02] [%clk 00:15:33]} 4. Nxd4
{[%emt 00:00:02] [%clk 00:15:34]} Nf6 {[%emt 00:00:01] [%clk 00:15:42]} 5. Nc3
{[%emt 00:00:01] [%clk 00:15:43]} a6 {[%emt 00:00:04] [%clk 00:15:48]} 6. Be2
{[%emt 00:00:34] [%clk 00:15:19]} g6 {[%emt 00:00:25] [%clk 00:15:33]} 7. Be3
{[%emt 00:00:11] [%clk 00:15:18]} Bg7 {[%emt 00:00:02] [%clk 00:15:41]} 8. Qd2
{[%emt 00:00:07] [%clk 00:15:21]} h5 {[%emt 00:00:21] [%clk 00:15:30]} 9. O-O-O
{[%emt 00:01:19] [%clk 00:14:12]} Ng4 {[%emt 00:00:03] [%clk 00:15:37]} 10. Bxg4
{[%emt 00:00:04] [%clk 00:14:18]} hxg4 {[%emt 00:00:02] [%clk 00:15:46]} 11. f4
{[%emt 00:00:41] [%clk 00:13:47]} gxf3 {[%emt 00:00:03] [%clk 00:15:53]} 12.
gxf3 {[%emt 00:00:01] [%clk 00:13:55]} Nc6 {[%emt 00:02:43] [%clk 00:13:21]} 13.
Nxc6 {[%emt 00:02:20] [%clk 00:11:45]} bxc6 {[%emt 00:00:02] [%clk 00:13:29]}
14. Bd4 {[%emt 00:00:11] [%clk 00:11:43]} Bh6 {[%emt 00:00:07] [%clk 00:13:32]}
15. Be3 {[%emt 00:00:32] [%clk 00:11:21]} Bxe3 {[%emt 00:00:05] [%clk 00:13:38]}
16. Qxe3 {[%emt 00:00:01] [%clk 00:11:30]} Qa5 {[%emt 00:00:16] [%clk 00:13:32]}
17. a3 {[%emt 00:01:51] [%clk 00:09:49]} Rb8 {[%emt 00:00:08] [%clk 00:13:33]}
18. Ne2 {[%emt 00:00:27] [%clk 00:09:32]} Qb5 {[%emt 00:01:27] [%clk 00:12:16]}
19. Qc3 {[%emt 00:00:08] [%clk 00:09:34]} Rh5 {[%emt 00:00:31] [%clk 00:11:56]}
20. Nd4 {[%emt 00:03:59] [%clk 00:05:45]} Qg5+ {[%emt 00:02:01] [%clk 00:10:04]}
21. Kb1 {[%emt 00:00:09] [%clk 00:05:47]} c5 {[%emt 00:00:02] [%clk 00:10:13]}
22. Ne2 {[%emt 00:00:15] [%clk 00:05:41]} Qe5 {[%emt 00:00:46] [%clk 00:09:36]}
23. Qxe5 {[%emt 00:00:38] [%clk 00:05:14]} Rxe5 {[%clk 00:09:45]} 24. h4 {[%emt
00:00:46] [%clk 00:04:37]} Be6 {[%emt 00:01:15] [%clk 00:08:40]} 25. Nf4 {[%emt
00:01:02] [%clk 00:03:46]} Bc4 {[%emt 00:02:21] [%clk 00:06:29]} 26. h5 {[%emt
00:01:11] [%clk 00:02:44]} gxh5 {[%emt 00:00:04] [%clk 00:06:36]} 27. Nxh5
{[%emt 00:02:26] [%clk 00:00:29]} Be2 {[%emt 00:00:03] [%clk 00:06:41]} 28. Ng3
{[%emt 00:00:20] [%clk 00:00:20]} Bxd1 {[%emt 00:00:07] [%clk 00:06:44]} 29. f4
{[%clk 00:00:29]} Re6 {[%emt 00:02:02] [%clk 00:04:52]} 30. Rh8+ {[%emt
00:00:06] [%clk 00:00:33]} Kd7 {[%emt 00:00:01] [%clk 00:05:02]} 31. Rxb8 {[%emt
00:00:01] [%clk 00:00:41]} Bf3 {[%emt 00:00:03] [%clk 00:05:09]} 32. Rf8 {[%emt
00:00:23] [%clk 00:00:27]} Rg6 {[%emt 00:00:11] [%clk 00:05:08]} 33. Nf5 {[%emt
00:00:18] [%clk 00:00:20]} Bxe4 {[%emt 00:00:29] [%clk 00:04:49]} 34. Ne3 {[%emt
00:00:07] [%clk 00:00:22]} Rg3 {[%emt 00:00:15] [%clk 00:04:45]} 35. Nc4 {[%emt
00:00:07] [%clk 00:00:25]} Ke6 {[%emt 00:00:42] [%clk 00:04:13]} 36. Nd2 {[%emt
00:00:18] [%clk 00:00:17]} Rg1+ {[%emt 00:00:08] [%clk 00:04:15]} 37. Ka2 {[%emt
00:00:01] [%clk 00:00:26]} Bxc2 {[%emt 00:00:01] [%clk 00:04:23]} 38. Ra8 {[%emt
00:00:16] [%clk 00:00:20]} Rd1 {[%emt 00:00:18] [%clk 00:04:15]} 39. Nc4 {[%emt
00:00:12] [%clk 00:00:19]} Bd3 {[%emt 00:00:34] [%clk 00:03:51]} 40. Nb6 {[%emt
00:00:15] [%clk 00:00:14]} c4 {[%emt 00:00:56] [%clk 00:03:05]} 41. a4 {[%emt
00:00:05] [%clk 00:00:19]} d5 {[%emt 00:00:40] [%clk 00:02:35]} 42. Ra7 {[%emt
00:00:06] [%clk 00:00:23]} d4 {[%emt 00:00:13] [%clk 00:02:32]} 43. Nc8 {[%emt
00:00:12] [%clk 00:00:22]} c3 {[%emt 00:00:03] [%clk 00:02:38]} 44. bxc3 {[%emt
00:00:02] [%clk 00:00:30]} dxc3 {[%emt 00:00:04] [%clk 00:02:45]} 45. Rxe7+
{[%emt 00:00:02] [%clk 00:00:38]} Kf6 {[%emt 00:00:01] [%clk 00:02:52]} 46. Rc7
{[%emt 00:00:03] [%clk 00:00:46]} c2 {[%emt 00:00:11] [%clk 00:02:51]} 47. Kb2
{[%emt 00:00:20] [%clk 00:00:36]} Rb1+ {[%emt 00:00:03] [%clk 00:02:58]} 0-1

[Site "Europe Echecs"]

[Event "Championnat d'Europe Rapide"]
[Date "2024.12.08"]
[White "Tsolakidou, Stavroula"]
[Black "Zygouris, Hristos"]
[WhiteElo "2451"]
[BlackElo "2163"]
[Round "7.46"]
[Result "1-0"]
[TimeControl "900+10"]

1. e4 {[%emt 00:00:54] [%clk 00:14:24]} c5 {[%emt 00:00:08] [%clk 00:15:13]} 2.
Nf3 {[%emt 00:00:03] [%clk 00:14:31]} Nc6 {[%emt 00:00:07] [%clk 00:15:16]} 3.
d4 {[%emt 00:00:05] [%clk 00:14:37]} cxd4 {[%emt 00:00:03] [%clk 00:15:23]} 4.
Nxd4 {[%emt 00:00:02] [%clk 00:14:43]} Qb6 {[%emt 00:00:18] [%clk 00:15:16]} 5.
Nb3 {[%emt 00:00:11] [%clk 00:14:42]} Nf6 {[%emt 00:00:02] [%clk 00:15:24]} 6.
Nc3 {[%emt 00:00:03] [%clk 00:14:48]} e6 {[%emt 00:00:02] [%clk 00:15:33]} 7. a3
{[%emt 00:02:21] [%clk 00:12:37]} d6 {[%emt 00:01:36] [%clk 00:14:07]} 8. Be3
{[%emt 00:00:59] [%clk 00:11:48]} Qc7 {[%emt 00:00:02] [%clk 00:14:16]} 9. f4
{[%emt 00:00:53] [%clk 00:11:04]} a6 {[%emt 00:00:02] [%clk 00:14:24]} 10. g4
{[%emt 00:00:03] [%clk 00:11:10]} b5 {[%emt 00:00:07] [%clk 00:14:27]} 11. g5
{[%emt 00:00:11] [%clk 00:11:10]} Nd7 {[%emt 00:00:01] [%clk 00:14:36]} 12. Qe2
{[%emt 00:01:26] [%clk 00:09:54]} b4 {[%emt 00:02:18] [%clk 00:12:28]} 13. axb4
{[%emt 00:00:10] [%clk 00:09:54]} Nxb4 {[%emt 00:00:02] [%clk 00:12:37]} 14. Bg2
{[%emt 00:00:43] [%clk 00:09:21]} Rb8 {[%emt 00:00:01] [%clk 00:12:45]} 15. O-O
{[%emt 00:00:08] [%clk 00:09:22]} g6 {[%emt 00:02:39] [%clk 00:10:17]} 16. f5
{[%emt 00:03:05] [%clk 00:06:27]} Ne5 {[%emt 00:00:22] [%clk 00:10:05]} 17. Nd4
{[%emt 00:00:26] [%clk 00:06:11]} Bg7 {[%emt 00:05:19]} 18. fxe6 {[%clk
00:04:13]} fxe6 {[%emt 00:00:35] [%clk 00:06:39]} 19. Bh3 {[%emt 00:00:17] [%clk
00:04:05]} Ke7 {[%emt 00:01:42] [%clk 00:05:07]} 20. Rf6 {[%emt 00:00:53] [%clk
00:03:22]} Bxf6 {[%emt 00:00:46] [%clk 00:04:32]} 21. gxf6+ {[%emt 00:00:01]
[%clk 00:03:30]} Kf7 {[%emt 00:00:22] [%clk 00:04:21]} 22. Qf2 {[%emt 00:02:02]
[%clk 00:01:37]} Bd7 {[%emt 00:00:49] [%clk 00:03:42]} 23. Bh6 {[%emt 00:00:52]}
Qc5 {[%clk 00:03:27]} 24. Rd1 {[%emt 00:00:28] [%clk 00:01:03]} Nbc6 {[%emt
00:00:48] [%clk 00:02:48]} 25. Be3 {[%emt 00:00:36] [%clk 00:00:38]} Nxd4 {[%emt
00:01:30] [%clk 00:01:28]} 26. Bxd4 {[%emt 00:00:02] [%clk 00:00:46]} Qc7 {[%emt
00:00:22] [%clk 00:01:16]} 27. Qe3 {[%emt 00:00:26] [%clk 00:00:29]} h6 {[%emt
00:00:32] [%clk 00:00:55]} 28. Ne2 {[%emt 00:00:21] [%clk 00:00:17]} Qxc2 {[%emt
00:00:18] [%clk 00:00:47]} 29. Rc1 {[%emt 00:00:10] [%clk 00:00:18]} Qb3 {[%emt
00:00:07] [%clk 00:00:49]} 30. Rc3 {[%emt 00:00:13] [%clk 00:00:15]} Qd1+ {[%emt
00:00:07] [%clk 00:00:51]} 31. Kf2 {[%emt 00:00:07] [%clk 00:00:19]} Rb7 {[%emt
00:00:29] [%clk 00:00:33]} 32. Bxe5 {[%emt 00:00:06] [%clk 00:00:22]} dxe5
{[%clk 00:00:42]} 33. Rd3 {[%emt 00:00:05] [%clk 00:00:27]} Qa4 {[%emt 00:00:16]
[%clk 00:00:36]} 34. Rd2 {[%emt 00:00:18] [%clk 00:00:19]} Qb4 {[%emt 00:00:25]
[%clk 00:00:21]} 35. Ng1 {[%emt 00:00:02] [%clk 00:00:28]} Bc6 {[%emt 00:00:10]
[%clk 00:00:21]} 36. Nf3 {[%emt 00:00:01] [%clk 00:00:37]} Qxe4 {[%emt 00:00:16]
[%clk 00:00:15]} 37. Nxe5+ {[%emt 00:00:02] [%clk 00:00:45]} Kxf6 {[%emt
00:00:01] [%clk 00:00:24]} 38. Nxc6 {[%emt 00:00:32] [%clk 00:00:23]} Qxc6
{[%emt 00:00:01] [%clk 00:00:32]} 39. Bg2 {[%emt 00:00:02] [%clk 00:00:32]} Qb6
{[%emt 00:00:23] [%clk 00:00:19]} 40. Bxb7 {[%emt 00:00:02] [%clk 00:00:40]}
Qxb7 {[%emt 00:00:02] [%clk 00:00:27]} 41. Qc3+ {[%emt 00:00:21] [%clk
00:00:29]} e5 {[%emt 00:00:03] [%clk 00:00:33]} 42. Rd6+ {[%emt 00:00:02] [%clk
00:00:37]} Kf5 {[%emt 00:00:05] [%clk 00:00:39]} 43. Qh3+ {[%emt 00:00:10] [%clk
00:00:36]} Kf4 {[%emt 00:00:04] [%clk 00:00:45]} 44. Qg3+ {[%emt 00:00:09] [%clk
00:00:37]} Kf5 {[%emt 00:00:03] [%clk 00:00:53]} 45. Qxg6+ {[%emt 00:00:03]
[%clk 00:00:44]} 1-0

[Site "Europe Echecs"]

[Event "Championnat d'Europe Rapide"]
[Date "2024.12.08"]
[White "Herega, Nejc"]
[Black "Diermair, Andreas"]
[WhiteElo "2249"]
[BlackElo "2433"]
[Round "7.47"]
[Result "0-1"]
[TimeControl "900+10"]

1. d4 {[%emt 00:00:04] [%clk 00:15:17]} Nf6 {[%emt 00:00:03] [%clk 00:15:16]} 2.
c4 {[%emt 00:00:04] [%clk 00:15:23]} e6 {[%emt 00:00:02] [%clk 00:15:24]} 3. Nc3
{[%emt 00:00:05] [%clk 00:15:28]} Bb4 {[%emt 00:00:05] [%clk 00:15:29]} 4. e3
{[%emt 00:00:08] [%clk 00:15:30]} c5 {[%emt 00:00:21] [%clk 00:15:19]} 5. Nge2
{[%emt 00:00:12] [%clk 00:15:27]} d5 {[%emt 00:00:08] [%clk 00:15:21]} 6. a3
{[%emt 00:00:48] [%clk 00:14:47]} Ba5 {[%emt 00:00:16] [%clk 00:15:17]} 7. cxd5
{[%emt 00:02:34] [%clk 00:12:24]} cxd4 {[%emt 00:00:21] [%clk 00:15:06]} 8. Qxd4
{[%emt 00:02:58] [%clk 00:09:35]} exd5 {[%emt 00:00:11] [%clk 00:15:05]} 9. g3
{[%emt 00:01:01] [%clk 00:08:44]} Nc6 {[%emt 00:00:16] [%clk 00:14:59]} 10. Qd1
{[%emt 00:00:03] [%clk 00:08:50]} Bg4 {[%emt 00:01:39] [%clk 00:13:31]} 11. Bg2
{[%emt 00:00:07] [%clk 00:08:53]} Bxc3+ {[%emt 00:00:14] [%clk 00:13:28]} 12.
bxc3 {[%emt 00:00:08] [%clk 00:08:55]} Ne5 {[%emt 00:00:34] [%clk 00:13:03]} 13.
h3 {[%emt 00:00:48] [%clk 00:08:17]} Bf3 {[%emt 00:00:14] [%clk 00:13:00]} 14.
O-O {[%emt 00:00:18] [%clk 00:08:08]} O-O {[%emt 00:00:23] [%clk 00:12:48]} 15.
Bxf3 {[%emt 00:00:32] [%clk 00:07:45]} Nxf3+ {[%emt 00:00:03] [%clk 00:12:55]}
16. Kg2 {[%emt 00:00:01] [%clk 00:07:54]} Ne5 {[%emt 00:00:20] [%clk 00:12:46]}
17. Qd4 {[%emt 00:00:35] [%clk 00:07:29]} Nc6 {[%emt 00:01:16] [%clk 00:11:39]}
18. Qf4 {[%emt 00:00:07] [%clk 00:07:31]} Re8 {[%emt 00:00:11] [%clk 00:11:39]}
19. Rd1 {[%emt 00:00:25] [%clk 00:07:16]} Re4 {[%emt 00:01:13] [%clk 00:10:37]}
20. Qf5 {[%emt 00:01:06] [%clk 00:06:19]} g6 {[%emt 00:00:09] [%clk 00:10:38]}
21. Qg5 {[%emt 00:00:10] [%clk 00:06:20]} Kg7 {[%emt 00:00:17] [%clk 00:10:30]}
22. Nd4 {[%emt 00:00:04] [%clk 00:06:26]} Qd7 {[%emt 00:01:25] [%clk 00:09:15]}
23. f3 {[%emt 00:02:04] [%clk 00:04:32]} Re5 {[%emt 00:00:34] [%clk 00:08:51]}
24. Qf4 {[%emt 00:00:13] [%clk 00:04:29]} g5 {[%emt 00:00:30] [%clk 00:08:31]}
25. Nxc6 {[%emt 00:00:22] [%clk 00:04:17]} gxf4 {[%emt 00:00:05] [%clk
00:08:36]} 26. Nxe5 {[%emt 00:00:01] [%clk 00:04:26]} Qa4 {[%emt 00:00:21] [%clk
00:08:26]} 27. Bd2 {[%emt 00:00:44] [%clk 00:03:52]} fxg3 {[%emt 00:00:10] [%clk
00:08:25]} 28. Rac1 {[%emt 00:00:44] [%clk 00:03:18]} Re8 {[%emt 00:00:09] [%clk
00:08:26]} 29. Nd3 {[%emt 00:00:05] [%clk 00:03:24]} Nh5 {[%emt 00:01:22] [%clk
00:07:13]} 30. Nb4 {[%emt 00:00:39] [%clk 00:02:55]} a5 {[%emt 00:00:39] [%clk
00:06:45]} 31. Nc2 {[%emt 00:00:16] [%clk 00:02:49]} Qh4 {[%emt 00:00:20] [%clk
00:06:35]} 32. Nd4 {[%emt 00:00:11] [%clk 00:02:47]} Qg5 {[%emt 00:02:05] [%clk
00:04:40]} 33. Rb1 {[%emt 00:00:31] [%clk 00:02:27]} Qg6 {[%emt 00:00:57] [%clk
00:03:53]} 34. Rxb7 {[%emt 00:00:45] [%clk 00:01:52]} Qd3 {[%emt 00:00:03] [%clk
00:03:59]} 35. Rbb1 {[%emt 00:00:05] [%clk 00:01:58]} h6 {[%emt 00:00:45] [%clk
00:03:23]} 36. a4 {[%emt 00:00:36] [%clk 00:01:33]} Kh7 {[%emt 00:00:09] [%clk
00:03:24]} 37. Rb7 {[%emt 00:01:09] [%clk 00:00:34]} Kg8 {[%emt 00:00:06] [%clk
00:03:27]} 38. Rbb1 {[%emt 00:00:09] [%clk 00:00:36]} Kh7 {[%emt 00:00:40] [%clk
00:02:57]} 39. Rb7 {[%emt 00:00:04] [%clk 00:00:42]} Rxe3 {[%emt 00:00:32] [%clk
00:02:35]} 40. Bxe3 {[%emt 00:00:30] [%clk 00:00:21]} Qxe3 {[%emt 00:00:28]
[%clk 00:02:17]} 41. Rb2 {[%emt 00:00:16] [%clk 00:00:16]} Qxc3 {[%emt 00:00:20]
[%clk 00:02:07]} 42. Rbd2 {[%emt 00:00:11] [%clk 00:00:14]} Qe3 {[%emt 00:00:33]
[%clk 00:01:45]} 43. Nc2 {[%emt 00:00:11] [%clk 00:00:12]} Qg5 {[%emt 00:00:08]
[%clk 00:01:47]} 44. Kg1 {[%emt 00:00:06] [%clk 00:00:16]} Nf4 {[%emt 00:00:36]
[%clk 00:01:22]} 45. Ne1 {[%emt 00:00:12] [%clk 00:00:13]} Nxh3+ {[%emt
00:00:03] [%clk 00:01:29]} 46. Kf1 {[%emt 00:00:07] [%clk 00:00:16]} Nf4 {[%emt
00:00:48] [%clk 00:00:51]} 47. Ng2 {[%emt 00:00:04] [%clk 00:00:22]} Qh5 {[%emt
00:00:10] [%clk 00:00:51]} 48. Nxf4 {[%emt 00:00:10] [%clk 00:00:23]} Qxf3+
{[%emt 00:00:01] [%clk 00:00:59]} 49. Kg1 {[%clk 00:00:32]} Qxf4 {[%emt
00:00:02] [%clk 00:01:08]} 50. Kg2 {[%emt 00:00:16] [%clk 00:00:26]} h5 {[%emt
00:00:02] [%clk 00:01:16]} 51. Rxd5 {[%emt 00:00:12] [%clk 00:00:24]} Qf2+
{[%emt 00:00:02] [%clk 00:01:23]} 52. Kh3 {[%emt 00:00:02] [%clk 00:00:33]} Qh2#
{[%clk 00:01:31]} 0-1

[Site "Europe Echecs"]